bitfinex/quotes_ETHUSD_20251018
["timestamp","ask_amount","ask_price","bid_price","bid_amount"]
[1760785655518,1.77391372,3880.5,3880.4,0.6336]
[1760785662340,1.77391372,3880.5,3880.4,3.21065391]
[1760785662341,0.04591372,3880.5,3880.4,3.21065391]
[1760785662512,0.04591372,3880.5,3880.4,1.30816216]
[1760785662706,0.04591372,3880.5,3880.4,1.40856851]
[1760785663311,0.04591372,3880.5,3880.4,1.88226851]
[1760785663714,0.04591372,3880.5,3880.4,4.45932242]
[1760785664232,0.04591372,3880.5,3880.4,0.77496851]
[1760785664437,0.48991372,3880.5,3879.6,0.4737]
[1760785664613,0.48991372,3880.5,3880.3,0.6336]
[1760785664817,0.444,3880.4,3880.3,0.6336]
[1760785665514,0.444,3880.4,3880.2,0.77508664]
[1760785665717,0.444,3880.3,3880.2,0.77508664]
[1760785665954,2.172,3880.3,3880.2,0.77508664]
[1760785666112,2.172,3880.3,3879.8,0.002]
[1760785666452,0.6738981,3880.2,3879.8,0.002]
[1760785666854,0.444,3880.1,3879.8,0.002]
[1760785667232,0.444,3880.0,3879.8,0.002]
[1760785667742,0.444,3879.9,3879.8,0.002]
[1760785668560,0.6738981,3880.2,3879.8,0.002]
[1760785668715,0.5416,3879.9,3879.8,0.002]
[1760785670859,0.94589775,3879.9,3879.8,0.002]
[1760785673861,0.40429775,3879.9,3879.8,0.002]
[1760785674252,0.66659878,3880.1,3879.8,0.002]
[1760785675076,0.1288,3880.1,3879.8,0.002]
[1760785675777,0.1288,3880.1,3879.9,0.4737]
[1760785675944,3.83417595,3880.4,3879.8,0.002]
[1760785676142,1.728,3880.0,3879.8,0.002]
[1760785676342,0.1288,3880.1,3879.8,0.002]
[1760785676548,0.7423876,3880.1,3879.8,0.002]
[1760785676859,0.4449,3880.0,3879.8,0.002]
[1760785677460,0.84918133,3880.0,3879.8,0.002]
[1760785677686,0.4449,3879.9,3879.8,0.002]
[1760785677884,0.40428133,3880.0,3879.8,0.002]
[1760785682093,1.728,3879.9,3879.8,0.002]
[1760785685787,1.77291887,3879.9,3879.8,0.002]
[1760785689601,2.21581887,3879.9,3879.8,0.002]
[1760785690098,3.11572727,3879.9,3879.8,0.002]
[1760785690395,1.77291887,3879.9,3879.8,0.002]
[1760785694001,1.77291887,3879.9,3879.8,1.1075]
[1760785694803,1.77291887,3879.9,3879.8,0.6356]
[1760785698198,1.77291887,3879.9,3879.8,1.1075]
[1760785698879,1.77291887,3879.9,3879.8,3.68495244]
[1760785698880,0.04491887,3879.9,3879.8,3.68495244]
[1760785699092,0.001,3880.0,3879.9,3.21098601]
[1760785699303,0.001,3880.5,3880.4,3.21065391]
[1760785699628,0.001,3880.5,3880.4,3.23642444]
[1760785699822,0.001,3880.5,3880.4,3.70832444]
[1760785700123,0.001,3880.5,3880.4,4.45834731]
[1760785700280,0.001,3880.5,3880.4,7.06034731]
[1760785700482,0.001,3880.5,3880.4,7.03457678]
[1760785700711,0.001,3880.5,3880.4,8.76257678]
[1760785709321,0.001,3880.5,3880.4,8.89137678]
[1760785710881,1e-08,3880.9,3880.8,3.21038829]
[1760785711082,1e-08,3880.9,3880.8,8.058995]
[1760785711317,1e-08,3880.9,3880.8,8.63392712]
[1760785711503,1e-08,3880.9,3880.8,6.90592712]
[1760785712116,1e-08,3880.9,3880.8,7.0092197]
[1760785713015,1e-08,3880.9,3880.8,9.7272197]
[1760785713225,1e-08,3880.9,3880.8,7.0092197]
[1760785718240,1e-08,3880.9,3880.8,6.5373197]
[1760785719100,0.55300001,3880.9,3879.8,0.002]
[1760785719300,0.2157,3879.9,3879.8,2.57945244]
[1760785719532,0.5327,3879.9,3879.8,2.57945244]
[1760785719735,0.5327,3879.9,3879.8,3.09515555]
[1760785719923,0.5327,3879.9,3879.8,3.69306128]
[1760785720127,0.23500001,3880.9,3880.2,2.57714262]
[1760785720433,0.23500001,3880.9,3880.0,2.57731281]
[1760785720434,0.23500001,3880.9,3880.8,0.002]
[1760785720825,0.53280001,3880.9,3880.8,0.002]
[1760785722334,0.57771227,3880.9,3880.8,0.002]
[1760785727927,1.31129966,3880.9,3880.8,0.002]
[1760785733042,0.57771227,3880.9,3880.8,0.002]
[1760785738362,8.68371227,3880.9,3880.8,0.002]
[1760785738978,8.38591227,3880.9,3880.8,0.002]
[1760785739471,8.68371227,3880.9,3880.8,0.002]
[1760785742645,0.0389,3880.0,3878.8,0.4637]
[1760785742842,1.7669,3880.0,3879.2,2.57784834]
[1760785743045,0.2978,3879.9,3879.2,2.57784834]
[1760785743295,8.42944314,3879.9,3879.1,0.002]
[1760785743578,8.4038,3879.9,3879.1,0.002]
[1760785751521,12.23569104,3879.9,3879.1,0.002]
[1760785755032,12.23569104,3879.9,3879.2,0.1837]
[1760785755033,8.106,3879.9,3879.2,0.1837]
[1760785755215,9.65367701,3879.9,3879.1,0.6356]
[1760785756027,10.05799369,3879.9,3879.1,0.6356]
[1760785757115,10.05799369,3879.9,3879.1,0.8193]
[1760785757434,10.05799369,3879.9,3879.2,0.4497]
[1760785759345,10.05799369,3879.9,3879.1,0.1857]
[1760785761442,10.05799369,3879.9,3879.1,0.002]
[1760785761956,10.05799369,3879.9,3879.1,0.1857]
[1760785763011,10.05799369,3879.9,3879.1,0.002]
[1760785763657,9.76019369,3879.9,3879.2,0.4497]
[1760785763815,10.05799369,3879.9,3879.2,0.4497]
[1760785764011,9.65367701,3879.9,3879.2,0.4497]
[1760785764248,9.65367701,3879.9,3879.1,0.002]
[1760785764746,9.35587701,3879.9,3879.1,0.1857]
[1760785765076,9.65367701,3879.9,3879.1,0.6354]
[1760785767218,9.65367701,3879.9,3879.1,0.1857]
[1760785767418,9.65367701,3879.9,3879.1,0.002]
[1760785768548,10.05799915,3879.9,3879.1,0.002]
[1760785769123,9.76019915,3879.9,3879.1,0.1857]
[1760785769321,10.05799915,3879.9,3879.1,0.6354]
[1760785771353,13.88989019,3879.9,3879.1,0.002]
[1760785772640,26.56589919,3879.9,3879.1,0.002]
[1760785772841,16.75919515,3879.9,3879.1,0.002]
[1760785773032,13.63539015,3879.9,3879.1,0.002]
[1760785773653,10.05799915,3879.9,3879.1,0.002]
[1760785773852,15.78474215,3879.9,3879.1,0.002]
[1760785774231,10.05799915,3879.9,3879.1,0.002]
[1760785774436,16.96654215,3879.9,3879.1,0.002]
[1760785774635,14.70674415,3879.9,3879.1,0.002]
[1760785775528,10.05799915,3879.9,3879.1,0.002]
[1760785775750,12.72158715,3879.9,3879.1,0.002]
[1760785776061,12.72158715,3879.9,3879.1,0.1857]
[1760785776849,3.83189104,3879.5,3879.1,0.1857]
[1760785777049,10.61672328,3879.5,3879.1,0.1857]
[1760785777259,10.59108014,3879.5,3879.1,0.1857]
[1760785777562,10.99542739,3879.5,3879.1,0.1857]
[1760785779958,10.99542739,3879.5,3879.1,0.6205]
[1760785780337,10.99542739,3879.5,3879.4,0.4368]
[1760785780338,6.78034725,3879.5,3879.4,0.4368]
[1760785781132,8.50834725,3879.5,3879.4,0.4368]
[1760785781946,8.50834725,3879.5,3879.4,1.0704]
[1760785782155,8.50834725,3879.5,3879.4,3.6092182]
[1760785782459,8.50834725,3879.5,3879.4,1.0315]
[1760785783272,8.50834725,3879.5,3879.4,0.3979]
[1760785783464,8.50834725,3879.5,3879.1,0.3145]
[1760785783465,9.75525108,3879.5,3879.1,0.3145]
[1760785783672,0.02564314,3879.4,3879.1,0.3145]
[1760785784077,0.1288,3879.3,3879.1,0.1857]
[1760785784263,0.02564314,3879.2,3879.1,0.6205]
[1760785786381,0.02564314,3879.2,3879.1,0.1857]
[1760785787367,0.02564314,3879.2,3879.1,0.002]
[1760785789042,0.07057537,3879.2,3879.1,0.002]
[1760785789244,9.38810201,3879.2,3879.1,0.002]
[1760785789444,9.69685887,3879.2,3879.1,0.002]
[1760785790175,10.10122822,3879.2,3879.1,0.002]
[1760785791471,9.76682822,3879.2,3879.1,0.002]
[1760785791987,9.72189599,3879.2,3879.1,0.002]
[1760785792149,10.05629599,3879.2,3879.1,0.002]
[1760785792351,9.65192664,3879.2,3879.1,0.002]
[1760785795068,9.31752664,3879.2,3879.1,0.002]
[1760785796264,9.36246167,3879.2,3879.1,0.002]
[1760785796662,9.766825,3879.2,3879.1,0.002]
[1760785801901,10.101225,3879.2,3879.1,0.002]
[1760785802909,9.766825,3879.2,3879.1,0.002]
[1760785804592,8.14893503,3879.2,3879.1,0.5821]
[1760785806489,8.104,3879.2,3879.1,0.5821]
[1760785808810,8.14893147,3879.2,3879.1,0.5821]
[1760785809676,8.14893147,3879.2,3879.1,1.2157]
[1760785809877,8.14893147,3879.2,3879.1,0.5821]
[1760785814444,6.42093147,3879.2,3879.1,0.5821]
[1760785815099,0.04493147,3879.2,3879.1,3.92241755]
[1760785815638,0.001,3879.4,3879.2,0.6336]
[1760785815824,0.001,3879.4,3879.2,1.1069]
[1760785816017,0.001,3879.4,3879.2,3.21145012]
[1760785816334,0.001,3879.4,3879.3,1.1069]
[1760785816535,0.001,3879.4,3879.3,1.50333501]
[1760785816730,0.001,3879.4,3879.3,4.08111966]
[1760785817938,0.001,3879.4,3879.3,1.50333501]
[1760785818134,0.001,3879.4,3879.3,1.1069]
[1760785818323,0.001,3879.4,3879.3,3.68468465]
[1760785818928,0.001,3879.4,3879.1,0.2776]
[1760785819129,0.001,3879.4,3879.1,0.1308]
[1760785819328,0.3354,3879.4,3879.1,0.1308]
[1760785819640,0.38032928,3879.4,3879.1,0.002]
[1760785819940,0.04592928,3879.4,3879.1,0.002]
[1760785821356,0.04592928,3879.4,3879.1,0.64157854]
[1760785823173,0.04592928,3879.4,3879.1,1.11487854]
[1760785823858,0.04592928,3879.4,3879.1,3.8395938]
[1760785825526,0.04592928,3879.4,3879.2,2.57781695]
[1760785825682,0.04592928,3879.4,3879.2,3.05111695]
[1760785826015,0.04592928,3879.4,3879.2,0.4733]
[1760785826589,0.04592928,3879.4,3879.3,3.21138465]
[1760785826788,0.04592928,3879.4,3879.3,3.81348465]
[1760785830514,0.001,3879.4,3879.3,3.81348465]
[1760785832830,0.04592702,3879.4,3879.3,3.81348465]
[1760785833931,0.04592702,3879.4,3879.3,3.34018465]
[1760785834101,0.04592702,3879.4,3879.3,4.01889445]
[1760785834536,0.001,3879.4,3879.3,4.01889445]
[1760785834706,0.001,3879.4,3879.3,1.4411098]
[1760785834901,0.001,3879.4,3879.3,0.7624]
[1760785836931,0.04592814,3879.4,3879.3,3.34018465]
[1760785839541,0.04592814,3879.4,3879.3,0.7624]
[1760785840756,0.04592814,3879.4,3879.3,3.34018465]
[1760785840954,0.04592814,3879.4,3879.3,3.76928465]
[1760785841455,0.04592814,3879.4,3879.3,4.41908322]
[1760785841954,0.04592814,3879.4,3879.3,4.44486106]
[1760785844847,0.04592814,3879.4,3879.3,4.41908322]
[1760785846654,0.04592814,3879.4,3879.3,4.42108322]
[1760785848070,0.04592814,3879.4,3879.3,3.99198322]
[1760785848268,0.04592814,3879.4,3879.3,3.34218465]
[1760785850103,0.04592814,3879.4,3879.3,3.77128465]
[1760785854196,0.04592814,3879.4,3879.3,3.34218465]
[1760785857211,0.04592814,3879.4,3879.3,3.77128465]
[1760785857408,0.04592814,3879.4,3879.3,3.34218465]
[1760785857710,0.04592814,3879.4,3879.3,3.95960862]
[1760785860482,0.04592814,3879.4,3879.3,4.29500862]
[1760785861502,0.38032814,3879.4,3879.3,3.67758465]
[1760785861784,0.38032814,3879.4,3879.3,1.0998]
[1760785863302,0.38032814,3879.4,3879.3,3.67758465]
[1760785863504,0.38032814,3879.4,3879.3,1.0998]
[1760785863680,0.38032814,3879.4,3879.3,3.67758465]
[1760785864383,0.38032814,3879.4,3879.3,1.0998]
[1760785864583,0.38032814,3879.4,3879.3,0.6356]
[1760785866538,0.80433052,3879.4,3879.3,0.6356]
[1760785867515,0.82997366,3879.4,3879.3,0.002]
[1760785867714,7.20597366,3879.4,3879.3,0.002]
[1760785867905,7.18033052,3879.4,3879.3,0.002]
[1760785868807,6.42192814,3879.4,3879.3,3.21338465]
[1760785869122,6.42192814,3879.4,3879.3,3.34218465]
[1760785869935,0.04592814,3879.4,3879.3,3.34218465]
[1760785870102,0.04592814,3879.4,3879.3,3.68328465]
[1760785870311,0.04592814,3879.4,3879.3,3.21338465]
[1760785870516,0.04592814,3879.4,3879.3,3.80759479]
[1760785870852,0.04592814,3879.4,3879.3,4.68281226]
[1760785873435,0.001,3879.4,3879.3,4.7085901]
[1760785875725,0.001,3879.4,3879.3,4.68281226]
[1760785876039,0.001,3879.4,3879.3,7.28181226]
[1760785877610,0.001,3879.4,3879.3,7.41119963]
[1760785878132,0.001,3879.4,3879.3,7.28181226]
[1760785880040,0.001,3879.4,3879.3,7.41061226]
[1760785887950,0.001,3879.4,3879.3,10.12861226]
[1760785892318,0.2904,3880.3,3880.2,2.57718674]
[1760785892519,0.2904,3880.3,3880.2,3.46850541]
[1760785893022,0.2904,3880.3,3880.2,3.75890541]
[1760785894938,0.23500001,3880.9,3880.3,2.57712032]
[1760785895142,0.23500001,3880.9,3880.3,3.21072032]
[1760785895522,0.2483,3880.4,3880.3,3.31404812]
[1760785897175,0.2483,3880.4,3880.3,0.7369278]
[1760785897681,0.2483,3880.4,3880.3,3.31404812]
[1760785902596,0.2483,3880.4,3880.3,3.44284812]
[1760785909391,0.2483,3880.4,3880.3,0.8657278]
[1760785909577,0.2483,3880.4,3880.3,0.7624]
[1760785909890,0.2483,3880.4,3880.3,3.33952032]
[1760785910475,0.001,3880.4,3880.3,3.33952032]
[1760785910655,0.001,3880.4,3880.3,3.36529152]
[1760785910856,0.001,3880.4,3880.3,3.44285319]
[1760785911779,0.001,3880.4,3880.3,4.44961399]
[1760785911979,0.001,3880.4,3880.3,9.27195696]
[1760785912198,1e-08,3880.9,3880.8,3.21038829]
[1760785912381,1e-08,3880.9,3880.8,5.83415617]
[1760785912581,1e-08,3880.9,3880.8,5.80838829]
[1760785912777,1e-08,3880.9,3880.8,7.08801442]
[1760785912973,1e-08,3880.9,3880.8,7.19130619]
[1760785915366,1e-08,3880.9,3880.8,9.43368203]
[1760785915698,0.001,3882.1,3881.6,3.20985721]
[1760785915893,0.001,3882.1,3881.6,5.80785721]
[1760785916063,0.001,3882.1,3881.6,7.10925741]
[1760785916261,0.001,3882.1,3881.6,7.21252785]
[1760785918281,0.001,3882.1,3881.6,8.94052785]
[1760785920668,0.001,3882.1,3881.6,8.49942785]
[1760785920905,0.001,3882.1,3881.6,8.94052785]
[1760785921668,0.001,3882.1,3881.6,9.06932785]
[1760785924103,0.001,3882.1,3881.6,8.62822785]
[1760785924315,0.311,3882.1,3881.6,8.62822785]
[1760785926780,0.5277,3881.9,3881.6,8.62822785]
[1760785926977,0.5277,3881.9,3881.6,6.90022785]
[1760785927179,0.4434,3881.7,3881.6,3.56535741]
[1760785927377,0.4434,3881.7,3881.6,2.70505721]
[1760785927587,0.4434,3881.7,3881.6,3.33865721]
[1760785929184,0.4434,3881.7,3881.6,2.70505721]
[1760785929407,0.4434,3881.7,3881.6,0.1288]
[1760785930293,0.4434,3881.7,3881.6,0.7624]
[1760785930491,0.4434,3881.7,3881.6,3.33865721]
[1760785931094,0.4434,3881.7,3881.6,0.7624]
[1760785932318,0.4434,3881.7,3881.5,0.6336]
[1760785932522,0.001,3881.7,3881.6,3.20985721]
[1760785933109,0.4434,3881.7,3881.6,3.20985721]
[1760785933887,0.4434,3881.7,3881.6,0.6336]
[1760785935095,0.4434,3881.7,3881.6,3.20985721]
[1760785937523,0.3934,3881.7,3881.6,0.6336]
[1760785937931,0.3934,3881.7,3881.6,3.20985721]
[1760785938510,0.3934,3881.7,3881.6,3.33865721]
[1760785938841,0.0448969,3881.8,3881.7,3.20979084]
[1760785939001,0.0448969,3881.8,3881.7,3.23555274]
[1760785939438,0.0448969,3881.8,3881.7,3.20979084]
[1760785940002,0.0448969,3881.8,3881.7,3.21518644]
[1760785940300,0.001,3882.1,3882.0,3.20959175]
[1760785940834,0.001,3882.1,3882.0,3.33759175]
[1760785945542,0.1992,3882.1,3882.0,3.33759175]
[1760785945748,0.001,3882.1,3882.0,3.33759175]
[1760785966794,0.2477,3882.1,3882.0,3.33759175]
[1760785966989,0.001,3882.1,3882.0,3.33759175]
[1760785968875,0.2477,3882.1,3882.0,3.33759175]
[1760785969276,0.001,3882.1,3882.0,3.33759175]
[1760785970496,0.001,3882.1,3882.0,3.79339175]
[1760785971407,0.001,3882.1,3882.0,3.33759175]
[1760785972480,0.001,3882.1,3882.0,3.79339175]
[1760785972679,0.001,3882.1,3882.0,4.48950674]
[1760785981281,0.001,3882.1,3882.0,4.59279185]
[1760785982178,0.001,3882.1,3882.0,4.61855176]
[1760785982408,0.001,3882.1,3882.0,7.18879185]
[1760785984617,0.001,3882.5,3882.4,3.20932635]
[1760785984798,0.001,3882.5,3882.4,6.25425899]
[1760785984994,0.001,3882.5,3882.4,6.71535899]
[1760785985424,0.001,3882.5,3882.4,6.81860437]
[1760785990632,0.001,3882.5,3882.4,6.35750437]
[1760785991355,0.001,3882.5,3882.4,3.12790437]
[1760785991556,0.001,3882.5,3882.4,5.72390437]
[1760785991880,0.001,3882.5,3882.4,6.35750437]
[1760785992757,0.001,3882.5,3882.4,6.81540437]
[1760785993734,0.001,3882.5,3882.4,6.68740437]
[1760785993934,0.001,3882.5,3882.4,6.35750437]
[1760785994174,0.001,3882.5,3882.4,8.41540437]
[1760785999099,0.001,3883.0,3882.9,4.93699467]
[1760785999299,0.001,3883.0,3882.9,8.02569414]
[1760785999795,0.001,3883.0,3882.9,6.53729414]
[1760786001466,0.2406,3883.0,3882.9,8.26529414]
[1760786002388,0.001,3883.0,3882.9,8.26529414]
[1760786002774,0.001,3883.0,3882.9,3.94229414]
[1760786002982,0.001,3883.0,3882.9,6.53729414]
[1760786004102,0.001,3883.0,3882.9,6.66529414]
[1760786006597,0.001,3883.0,3882.9,8.85119414]
[1760786007376,0.001,3883.0,3882.9,8.39329414]
[1760786009512,0.001,3883.0,3882.9,8.85119414]
[1760786013716,0.001,3883.0,3882.9,8.39329414]
[1760786014223,0.001,3883.0,3882.9,8.85119414]
[1760786017121,0.001,3883.0,3882.9,6.66529414]
[1760786017332,0.001,3883.0,3882.9,7.12279414]
[1760786020008,0.001,3883.0,3882.9,6.66529414]
[1760786020933,0.001,3883.0,3882.9,6.66729414]
[1760786025550,0.2406,3883.0,3882.9,6.66729414]
[1760786025723,0.2406,3883.0,3882.9,8.39529414]
[1760786026907,0.2406,3883.0,3882.9,5.80029414]
[1760786027244,0.2406,3883.0,3882.9,8.39529414]
[1760786027846,0.001,3883.0,3882.9,8.39529414]
[1760786028546,0.2406,3883.0,3882.9,8.39529414]
[1760786029054,0.2406,3883.0,3882.9,5.80029414]
[1760786029358,0.2406,3883.0,3882.9,5.30659467]
[1760786030147,0.001,3883.0,3882.9,5.30659467]
[1760786031147,0.001,3883.0,3882.9,5.17859467]
[1760786031848,0.001,3883.0,3882.9,7.77359467]
[1760786032056,0.001,3883.0,3882.9,5.17859467]
[1760786032231,0.2406,3883.0,3882.9,5.17859467]
[1760786032427,0.2406,3883.0,3882.9,5.46080361]
[1760786033625,0.001,3883.0,3882.9,3.73280361]
[1760786033843,0.2406,3883.0,3882.9,3.73280361]
[1760786036029,0.001,3883.0,3882.9,3.75855755]
[1760786038465,0.001,3883.0,3882.9,3.73280361]
[1760786038643,0.2406,3883.0,3882.9,3.73280361]
[1760786040266,0.001,3883.0,3882.9,3.73280361]
[1760786041140,0.001,3883.0,3882.9,3.86080361]
[1760786041340,0.001,3883.0,3882.9,4.31830361]
[1760786041969,0.001,3883.0,3882.9,3.86080361]
[1760786047949,0.001,3883.0,3882.9,3.88655755]
[1760786048149,0.001,3883.0,3882.9,3.86080361]
[1760786048345,0.001,3883.0,3882.9,4.32420361]
[1760786049258,0.001,3883.0,3882.9,4.34995755]
[1760786049451,0.001,3883.0,3882.9,4.32420361]
[1760786051472,0.001,3883.0,3882.9,3.86080361]
[1760786051680,0.001,3883.0,3882.9,4.32420361]
[1760786054495,0.001,3883.0,3882.9,6.07795755]
[1760786054647,0.001,3883.0,3882.9,6.05220361]
[1760786057389,0.001,3883.0,3882.9,8.64620361]
[1760786060196,0.001,3883.0,3882.9,8.18280361]
[1760786060772,0.2406,3883.0,3882.9,8.18280361]
[1760786061903,0.001,3883.0,3882.9,8.18280361]
[1760786063099,0.001,3883.0,3882.9,8.64620361]
[1760786063913,0.001,3883.0,3882.9,8.18280361]
[1760786066902,0.001,3883.0,3882.9,8.64620361]
[1760786068925,0.001,3883.0,3882.9,8.18280361]
[1760786069133,0.001,3883.0,3882.9,8.64620361]
[1760786070119,0.001,3883.0,3882.9,8.18280361]
[1760786083548,0.001,3883.0,3882.9,8.65160361]
[1760786084710,0.001,3883.0,3882.9,8.18280361]
[1760786084944,0.001,3883.0,3882.9,8.65160361]
[1760786086046,0.001,3883.0,3882.9,8.18280361]
[1760786086220,0.001,3883.0,3882.9,8.65160361]
[1760786088448,0.001,3883.0,3882.9,8.18280361]
[1760786097886,0.001,3883.0,3882.9,8.65160361]
[1760786099390,0.001,3883.0,3882.9,8.18280361]
[1760786099564,0.001,3883.0,3882.9,8.65160361]
[1760786100688,0.001,3883.0,3882.9,8.18280361]
[1760786101955,0.001,3883.0,3882.9,8.65160361]
[1760786102159,0.001,3883.4,3883.3,3.2087294]
[1760786102361,0.001,3883.4,3883.3,6.38013518]
[1760786102565,0.001,3883.4,3883.3,6.50813518]
[1760786103271,0.001,3883.4,3883.3,6.74873518]
[1760786104686,0.001,3883.6,3883.3,6.74873518]
[1760786104687,0.001,3883.6,3883.5,3.20859678]
[1760786104886,0.001,3883.8,3883.7,3.20846417]
[1760786105116,0.001,3883.8,3883.7,8.3521139]
[1760786105316,0.001,3883.8,3883.7,8.88616526]
[1760786105619,0.001,3883.8,3883.7,9.34366526]
[1760786107807,0.001,3884.2,3884.1,3.208199]
[1760786108012,0.001,3884.2,3884.1,6.57803316]
[1760786108201,0.001,3884.2,3884.1,7.15038717]
[1760786108820,0.224,3886.0,3885.9,3.20700641]
[1760786109027,0.04485758,3886.1,3886.0,3.20694019]
[1760786109193,0.40370722,3887.7,3886.2,3.20680776]
[1760786109523,0.2243,3888.2,3888.1,0.6336]
[1760786109888,0.2243,3888.2,3888.1,2.5719503]
[1760786110087,0.3979,3888.2,3888.1,3.4298503]
[1760786111455,0.04481673,3888.7,3888.1,3.4298503]
[1760786111456,0.04481673,3888.7,3888.6,3.2052196]
[1760786111623,0.04481673,3888.7,3888.6,0.6336]
[1760786111966,0.04481673,3888.7,3885.7,0.4701]
[1760786112116,1.728,3888.5,3886.3,1.728]
[1760786112422,0.2256,3888.4,3887.9,0.77351983]
[1760786112619,0.2256,3888.7,3888.6,2.5716196]
[1760786113912,0.2256,3888.7,3888.6,3.2052196]
[1760786114546,0.2243,3888.8,3888.7,3.20515347]
[1760786115527,0.2243,3888.8,3888.7,2.57155347]
[1760786116242,0.2256,3889.2,3888.9,3.20502122]
[1760786116456,0.3408,3889.0,3888.9,3.20502122]
[1760786117231,0.3408,3889.0,3888.9,3.54582122]
[1760786118948,0.04480776,3889.9,3888.9,3.54582122]
[1760786118949,0.04480776,3889.9,3888.9,3.67382122]
[1760786119117,0.1127,3890.6,3889.9,0.6336]
[1760786119317,0.1127,3890.6,3890.5,0.6336]
[1760786119318,0.4512,3890.6,3890.5,0.6336]
[1760786119849,0.4512,3890.6,3890.5,3.9769235]
[1760786121535,0.1127,3890.6,3890.5,3.9769235]
[1760786121740,0.4512,3890.6,3890.5,3.9769235]
[1760786122340,0.04479643,3891.5,3891.0,3.20363341]
[1760786122655,0.16189539,3891.1,3891.0,3.20363341]
[1760786122848,0.38989539,3891.1,3891.0,3.20363341]
[1760786123026,0.1171,3891.1,3891.0,3.42793341]
[1760786124468,0.3451,3891.1,3891.0,0.8579]
[1760786124628,0.3451,3891.1,3891.0,3.42793341]
[1760786125129,0.3451,3891.1,3891.0,0.8579]
[1760786125729,0.3451,3891.1,3891.0,3.42793341]
[1760786126218,0.1171,3891.1,3891.0,3.42793341]
[1760786126421,0.04479361,3891.3,3891.2,3.20350131]
[1760786126625,0.04479361,3891.3,3891.2,0.6336]
[1760786126826,0.04479361,3891.3,3891.2,3.20350131]
[1760786127128,0.27169361,3891.3,3891.2,3.20350131]
[1760786128361,0.27169361,3891.3,3891.2,0.6336]
[1760786128752,0.27169361,3891.3,3891.2,3.20350131]
[1760786129256,0.27169361,3891.3,3891.2,3.33150131]
[1760786130266,0.2269,3891.3,3891.2,3.33150131]
[1760786130863,0.2269,3891.3,3891.2,3.55840131]
[1760786132047,0.2269,3891.3,3891.2,0.9885]
[1760786133349,0.2269,3891.3,3891.2,0.2269]
[1760786133561,0.25254314,3891.3,3891.2,0.2269]
[1760786133729,0.2269,3891.3,3891.2,0.2269]
[1760786134948,0.91885371,3891.3,3891.2,0.2269]
[1760786135531,0.91885371,3891.3,3891.0,0.128]
[1760786135851,0.02564314,3891.2,3891.0,0.128]
[1760786136029,0.02564314,3891.2,3890.3,3.20408575]
[1760786136229,0.2269,3891.1,3890.8,0.7616]
[1760786136464,0.2243,3890.9,3890.8,0.7616]
[1760786136760,0.4512,3890.9,3890.8,0.128]
[1760786136975,0.4512,3890.9,3890.8,0.41986969]
[1760786138467,0.4512,3890.9,3887.2,0.2305]
[1760786138468,11.373544,3890.1,3887.2,0.2305]
[1760786138639,1.728,3888.7,3887.7,0.69195371]
[1760786138839,0.36754314,3888.6,3887.7,0.69195371]
[1760786139145,0.36754314,3888.6,3887.4,0.4577]
[1760786139343,0.69195371,3888.5,3888.0,0.6336]
[1760786139649,0.80115371,3888.5,3888.0,2.57199734]
[1760786139849,0.04482372,3888.4,3888.0,2.57199734]
[1760786140052,0.15402372,3888.4,3887.3,0.69195371]
[1760786140252,0.13484314,3888.3,3887.8,2.57214692]
[1760786140558,0.04482372,3888.4,3888.1,0.6336]
[1760786141468,0.04482372,3888.4,3888.1,2.57194626]
[1760786142176,0.04482372,3888.4,3888.1,0.6336]
[1760786142743,0.1092,3888.4,3888.1,0.6336]
[1760786142956,0.02564314,3888.3,3888.0,0.6336]
[1760786143787,0.02564314,3888.3,3887.9,0.6336]
[1760786143788,0.13484314,3888.3,3887.9,0.6336]
[1760786143974,0.1092,3888.3,3887.9,0.6336]
[1760786144170,0.1092,3888.3,3887.9,3.20566447]
[1760786144374,0.1092,3888.3,3887.8,0.6336]
[1760786144569,0.1092,3888.3,3888.1,0.6336]
[1760786145579,0.1092,3888.3,3888.0,2.57201465]
[1760786145580,0.1092,3888.3,3888.0,0.6336]
[1760786145765,0.1092,3888.2,3888.0,0.6336]
[1760786146077,0.04482393,3888.3,3887.8,3.20573444]
[1760786146445,0.04482393,3888.3,3888.0,0.6336]
[1760786147459,0.04482393,3888.3,3888.0,3.20559032]
[1760786148503,0.04482393,3888.3,3888.2,0.128]
[1760786151885,0.04482393,3888.3,3888.2,4.02168416]
[1760786152085,0.04482393,3888.3,3888.2,4.25438416]
[1760786153392,0.04482393,3888.3,3888.2,0.2327]
[1760786154271,0.04482393,3888.3,3888.2,0.1923884]
[1760786155099,0.04482393,3888.3,3888.2,2.76427256]
[1760786155401,0.04482393,3888.3,3888.2,3.85557256]
[1760786155780,0.04482393,3888.3,3888.2,3.39787256]
[1760786156215,0.04482393,3888.3,3888.2,3.85557256]
[1760786159895,0.04482393,3888.3,3888.2,3.39787256]
[1760786160414,0.04482393,3888.3,3888.2,0.8259884]
[1760786161220,0.04482393,3888.3,3888.2,3.39787256]
[1760786161420,0.04482393,3888.3,3888.2,0.8259884]
[1760786161627,0.15522393,3888.3,3888.2,0.6336]
[1760786162295,0.04482393,3888.3,3888.2,0.6336]
[1760786163568,0.04482393,3888.3,3888.2,0.7616]
[1760786164142,0.04482393,3888.3,3888.2,0.72531956]
[1760786164548,0.04482393,3888.3,3888.2,3.29720372]
[1760786165232,0.04482393,3888.3,3888.2,3.73290372]
[1760786165858,0.04482393,3888.3,3888.2,3.29720372]
[1760786168131,0.04482393,3888.3,3888.2,4.26781463]
[1760786168467,0.04481538,3889.1,3888.3,0.6336]
[1760786168650,0.04481538,3889.1,3889.0,0.6336]
[1760786168961,0.2303,3889.4,3889.0,0.6336]
[1760786169361,0.2303,3889.4,3889.1,0.6336]
[1760786169732,0.1116,3889.6,3889.1,0.6336]
[1760786171062,0.1128,3889.5,3889.1,0.6336]